bitfinex/quotes_BTCUSD_20250822
["timestamp","ask_amount","ask_price","bid_price","bid_amount"]
[1755888501427,1.93357755,117040.0,117030.0,0.001077]
[1755888501845,0.78578982,117030.0,117020.0,0.0004]
[1755888502049,1.13602383,117030.0,117020.0,0.0004]
[1755888502323,1.14400154,117030.0,117020.0,0.0004]
[1755888502512,1.14400154,117030.0,117020.0,0.00237]
[1755888502714,1.17415755,117030.0,117020.0,0.00237]
[1755888503126,1.17515755,117030.0,117020.0,0.0004]
[1755888503744,1.02347755,117030.0,117020.0,0.0004]
[1755888503949,1.02347755,117030.0,117020.0,0.00237]
[1755888504153,1.17599755,117030.0,117020.0,0.00237]
[1755888504365,1.16801984,117030.0,117020.0,0.00237]
[1755888504579,1.02349108,117030.0,117020.0,0.00237]
[1755888504807,1.17081108,117030.0,117020.0,0.00237]
[1755888504991,1.17081232,117030.0,117020.0,0.00237]
[1755888505255,1.17601168,117030.0,117020.0,0.00237]
[1755888506371,1.17069168,117030.0,117020.0,0.0046]
[1755888506788,1.17069168,117030.0,117020.0,0.00237]
[1755888507212,0.56452091,117030.0,117020.0,0.0046]
[1755888507440,1.14439184,117030.0,117020.0,0.0046]
[1755888507647,0.69860202,117030.0,117020.0,0.0046]
[1755888507862,1.14439184,117030.0,117020.0,0.0046]
[1755888508500,0.69860202,117030.0,117020.0,0.0046]
[1755888508731,1.14431184,117030.0,117020.0,0.0046]
[1755888511038,0.54620202,117030.0,117020.0,0.0046]
[1755888511246,1.14423184,117030.0,117020.0,0.0046]
[1755888511461,0.59559601,117030.0,117020.0,0.0046]
[1755888511664,1.04138583,117030.0,117020.0,0.0046]
[1755888514007,0.88914583,117030.0,117020.0,0.0046]
[1755888514411,1.04110583,117030.0,117020.0,0.0046]
[1755888514956,1.04110583,117030.0,117020.0,0.00237]
[1755888515361,0.59531601,117030.0,117020.0,0.00237]
[1755888515561,1.04110583,117030.0,117020.0,0.00237]
[1755888518707,1.04086583,117030.0,117020.0,0.00237]
[1755888518880,1.04086583,117030.0,117020.0,0.0046]
[1755888519341,1.04086583,117030.0,117020.0,0.00237]
[1755888520313,0.59507601,117030.0,117020.0,0.00237]
[1755888520516,1.04086583,117030.0,117020.0,0.00237]
[1755888521761,1.03817395,117030.0,117020.0,0.00237]
[1755888521972,1.04132395,117030.0,117020.0,0.00237]
[1755888522386,1.04335395,117030.0,117020.0,0.00237]
[1755888522826,0.59238413,117030.0,117020.0,0.00237]
[1755888523043,1.03817395,117030.0,117020.0,0.00237]
[1755888523255,1.03801395,117030.0,117020.0,0.00237]
[1755888527162,1.04116395,117030.0,117020.0,0.00237]
[1755888527367,0.59222413,117030.0,117020.0,0.00237]
[1755888527783,1.03801395,117030.0,117020.0,0.00237]
[1755888528129,1.03769395,117030.0,117020.0,0.00237]
[1755888530008,0.88960395,117030.0,117020.0,0.00237]
[1755888530253,0.59489413,117030.0,117020.0,0.00237]
[1755888530451,1.04068395,117030.0,117020.0,0.00237]
[1755888531103,1.03753395,117030.0,117020.0,0.00237]
[1755888531748,1.07857741,117030.0,117020.0,0.00237]
[1755888532179,0.63481759,117030.0,117020.0,0.00237]
[1755888532387,1.08060741,117030.0,117020.0,0.00237]
[1755888533400,0.92434741,117030.0,117020.0,0.00237]
[1755888533606,1.07550741,117030.0,117020.0,0.00237]
[1755888534068,1.08068741,117030.0,117020.0,0.00237]
[1755888534886,1.08068741,117030.0,117020.0,0.00450638]
[1755888537639,1.08068741,117030.0,117020.0,0.0004]
[1755888538284,1.16757216,117030.0,117020.0,0.0004]
[1755888546091,1.01641216,117030.0,117020.0,0.0004]
[1755888546294,1.16673216,117030.0,117020.0,0.0004]
[1755888547396,0.72094234,117030.0,117020.0,0.0004]
[1755888547593,1.07466741,117030.0,117020.0,0.00256]
[1755888548954,1.07979741,117030.0,117020.0,0.00256]
[1755888551271,0.73735929,117030.0,117020.0,0.00469638]
[1755888551473,0.29156947,117030.0,117020.0,0.00692638]
[1755888551629,0.73735929,117030.0,117020.0,0.00692638]
[1755888552224,0.29056947,117030.0,117020.0,0.00692638]
[1755888552429,0.29056947,117030.0,117020.0,0.00469638]
[1755888552430,0.73635929,117030.0,117020.0,0.00469638]
[1755888552634,0.73635929,117030.0,117020.0,0.00456]
[1755888552884,0.73635929,117030.0,117020.0,0.00679]
[1755888553286,0.73535929,117030.0,117020.0,0.00679]
[1755888553698,0.29056947,117030.0,117020.0,0.00779]
[1755888553877,0.73635929,117030.0,117020.0,0.00779]
[1755888554521,0.73635929,117030.0,117020.0,0.00556]
[1755888555173,0.29056947,117030.0,117020.0,0.00769638]
[1755888555353,0.73635929,117030.0,117020.0,0.00769638]
[1755888556044,0.29056947,117030.0,117020.0,0.00769638]
[1755888556248,0.73635929,117030.0,117020.0,0.00769638]
[1755888558636,0.74148929,117030.0,117020.0,0.0034]
[1755888558841,0.29569947,117030.0,117020.0,0.0034]
[1755888559053,0.74148929,117030.0,117020.0,0.0034]
[1755888559268,0.74148929,117030.0,117020.0,0.1743]
[1755888567758,0.82837404,117030.0,117020.0,0.1743]
[1755888568002,1.16837404,117030.0,117020.0,0.1743]
[1755888568630,0.72258422,117030.0,117020.0,0.1743]
[1755888568839,1.16837404,117030.0,117020.0,0.1743]
[1755888569679,0.72258422,117030.0,117020.0,0.1743]
[1755888569890,1.16837404,117030.0,117020.0,0.1743]
[1755888572529,0.72258422,117030.0,117020.0,0.1743]
[1755888572728,1.16837404,117030.0,117020.0,0.1743]
[1755888579607,0.72258422,117030.0,117020.0,0.1743]
[1755888579822,1.16837404,117030.0,117020.0,0.1743]
[1755888591359,1.61416386,117030.0,117020.0,0.1743]
[1755888591780,1.64848336,117030.0,117020.0,0.1743]
[1755888591978,1.76593238,117030.0,117020.0,0.1743]
[1755888592392,1.77390614,117030.0,117020.0,0.1723]
[1755888592812,1.78728454,117030.0,117020.0,0.1723]
[1755888593218,1.78628454,117030.0,117020.0,0.1713]
[1755888593422,1.79028454,117030.0,117020.0,0.1723]
[1755888593625,1.79228454,117030.0,117020.0,0.1723]
[1755888595246,1.77633708,117030.0,117020.0,0.1723]
[1755888595543,1.79229027,117030.0,117020.0,0.1723]
[1755888596327,1.79228622,117030.0,117020.0,0.1723]
[1755888598538,1.3464964,117030.0,117020.0,0.1723]
[1755888601003,1.79228622,117030.0,117020.0,0.1723]
[1755888603730,1.79229478,117030.0,117020.0,0.1723]
[1755888604377,1.75440132,117030.0,117020.0,0.1723]
[1755888605440,1.75440132,117030.0,117020.0,0.12251161]
[1755888605652,1.76039489,117030.0,117020.0,0.12251161]
[1755888605858,1.79803429,117030.0,117020.0,0.12251161]
[1755888607575,0.90645465,117030.0,117020.0,0.12251161]
[1755888607763,1.35224447,117030.0,117020.0,0.12251161]
[1755888607995,1.79803429,117030.0,117020.0,0.12251161]
[1755888609325,1.82101137,117030.0,117020.0,0.12251161]
[1755888609531,1.82101585,117030.0,117020.0,0.12251161]
[1755888609983,1.79803877,117030.0,117020.0,0.11395]
[1755888610194,2.02055877,117030.0,117020.0,0.10538839]
[1755888610582,2.02055877,117030.0,117020.0,0.09682678]
[1755888610944,2.02055877,117030.0,117020.0,0.08826517]
[1755888611470,2.02055877,117030.0,117020.0,0.07970356]
[1755888611880,2.02055877,117030.0,117020.0,0.07114195]
[1755888612312,2.02055877,117030.0,117020.0,0.06258034]
[1755888612534,2.01457482,117030.0,117020.0,0.06258034]
[1755888612723,2.02056463,117030.0,117020.0,0.05401873]
[1755888613140,2.00718623,117030.0,117020.0,0.04545712]
[1755888613352,2.00718623,117030.0,117020.0,0.03689551]
[1755888613549,2.03016332,117030.0,117020.0,0.03689551]
[1755888613694,2.03016332,117030.0,117020.0,0.0283339]
[1755888614102,2.03016332,117030.0,117020.0,0.01977229]
[1755888614503,2.03016332,117030.0,117020.0,0.01121068]
[1755888614964,2.03016332,117030.0,117020.0,0.00264907]
[1755888615449,0.34,117020.0,117010.0,1.00044]
[1755888615666,1.52161149,117020.0,117010.0,1.00044]
[1755888615889,1.52469149,117020.0,117010.0,1.00044]
[1755888616107,1.55038349,117020.0,117010.0,1.00044]
[1755888616560,1.54530349,117020.0,117010.0,1.00244]
[1755888616779,1.54838349,117020.0,117010.0,1.00244]
[1755888617002,1.55038349,117020.0,117010.0,1.00044]
[1755888617223,1.55238349,117020.0,117010.0,1.00044]
[1755888617431,1.55438349,117020.0,117010.0,1.00044]
[1755888619471,0.66280385,117020.0,117010.0,1.00044]
[1755888619672,1.55438349,117020.0,117010.0,1.00044]
[1755888620080,1.5677627,117020.0,117010.0,1.00044]
[1755888621765,1.5438221,117020.0,117010.0,1.00044]
[1755888621921,1.56777358,117020.0,117010.0,1.00044]
[1755888622336,0.67619379,117020.0,117010.0,1.00044]
[1755888622499,1.56777343,117020.0,117010.0,1.00044]
[1755888623345,1.56777343,117020.0,117010.0,1.00244]
[1755888623554,1.11690361,117020.0,117010.0,1.00244]
[1755888623703,1.56577343,117020.0,117010.0,1.00244]
[1755888623917,1.56269343,117020.0,117010.0,1.00244]
[1755888624711,1.56469339,117020.0,117010.0,1.00244]
[1755888624912,1.56777339,117020.0,117010.0,1.00244]
[1755888625140,1.56777339,117020.0,117010.0,1.00044]
[1755888625346,1.56777339,117020.0,117010.0,1.00244]
[1755888625543,0.51827375,117020.0,117010.0,1.00244]
[1755888625760,1.11702357,117020.0,117010.0,1.00467]
[1755888626137,1.11702357,117020.0,117010.0,1.00244]
[1755888626345,1.11103635,117020.0,117010.0,1.00467]
[1755888626802,1.09765714,117020.0,117010.0,1.00467]
[1755888628339,0.65186732,117020.0,117010.0,1.00244]
[1755888628764,1.09765714,117020.0,117010.0,1.00244]
[1755888630864,1.09767124,117020.0,117010.0,1.00244]
[1755888631281,1.08968357,117020.0,117010.0,1.00244]
[1755888631520,1.54858106,117020.0,117010.0,1.00044]
[1755888631731,1.10279124,117020.0,117010.0,1.00044]
[1755888632174,1.54858106,117020.0,117010.0,1.00044]
[1755888632615,1.55457197,117020.0,117010.0,1.00044]
[1755888633496,1.57754905,117020.0,117010.0,1.00044]
[1755888634391,1.60837754,117020.0,117010.0,1.00044]
[1755888636484,0.7167979,117020.0,117010.0,1.00044]
[1755888636711,1.60837754,117020.0,117010.0,1.00044]
[1755888637152,1.608372,117020.0,117010.0,1.00044]
[1755888639277,1.63904502,117020.0,117010.0,1.00044]
[1755888639931,1.61707994,117020.0,117010.0,1.00044]
[1755888640140,1.63903403,117020.0,117010.0,1.00044]
[1755888641667,1.60909664,117020.0,117010.0,1.00044]
[1755888641951,1.63902814,117020.0,117010.0,1.00044]
[1755888642832,1.63902814,117020.0,117010.0,0.99187795]
[1755888643249,1.63902667,117020.0,117010.0,0.9833159]
[1755888643679,1.60835365,117020.0,117010.0,0.97475385]
[1755888644127,1.80853621,117020.0,117010.0,0.9661918]
[1755888644317,1.83920923,117020.0,117010.0,0.9661918]
[1755888644446,2.01012018,117020.0,117010.0,0.95762975]
[1755888644675,1.96044344,117020.0,117010.0,0.9490677]
[1755888644869,2.02977042,117020.0,117010.0,0.9490677]
[1755888645083,2.06044344,117020.0,117010.0,0.94050565]
[1755888645549,2.02777042,117020.0,117010.0,0.9319436]
[1755888645892,2.03077042,117020.0,117010.0,0.92438079]
[1755888646334,2.03077042,117020.0,117010.0,0.91581798]
[1755888646696,2.03077042,117020.0,117010.0,0.90725517]
[1755888646933,2.02877042,117020.0,117010.0,0.90725517]
[1755888647151,2.03177042,117020.0,117010.0,0.89869236]
[1755888647564,2.13177042,117020.0,117010.0,0.89012955]
[1755888647965,2.13177042,117020.0,117010.0,0.88156674]
[1755888648412,2.13177042,117020.0,117010.0,0.87300393]
[1755888648615,2.13177042,117020.0,117010.0,0.86444112]
[1755888649046,2.10782669,117020.0,117010.0,0.85587831]
[1755888649252,2.13174523,117020.0,117010.0,0.82590847]
[1755888649523,2.60222711,117020.0,117010.0,0.159824]
[1755888649728,2.11835033,117020.0,117010.0,0.159824]
[1755888649938,2.09538548,117020.0,117010.0,0.12129135]
[1755888650137,2.11833895,117020.0,117010.0,0.12129135]
[1755888650360,2.11533895,117020.0,117010.0,0.11172854]
[1755888650580,2.11233895,117020.0,117010.0,0.0817587]
[1755888650790,2.11933895,117020.0,117010.0,0.07319589]
[1755888651203,2.14163816,117020.0,117010.0,0.03466324]
[1755888651403,2.14163816,117020.0,117010.0,0.02610043]
[1755888651628,2.14563816,117020.0,117010.0,0.02610043]
[1755888651849,2.14563816,117020.0,117010.0,0.01753762]
[1755888652084,0.54,117010.0,117000.0,0.0004]
[1755888652390,0.35744902,117000.0,116990.0,0.0004]
[1755888652606,1.60763023,117000.0,116990.0,0.00249]
[1755888652813,1.61209724,117000.0,116990.0,0.00249]
[1755888653021,1.62548013,117000.0,116990.0,0.00249]
[1755888653515,1.63155613,117000.0,116990.0,0.00249]
[1755888653693,1.63470406,117000.0,116990.0,0.00249]
[1755888653930,1.63160406,117000.0,116990.0,0.00249]
[1755888654601,1.63660406,117000.0,116990.0,0.00249]
[1755888655255,1.64172406,117000.0,116990.0,0.0004]
[1755888655487,1.64172406,117000.0,116990.0,0.00249]
[1755888655696,1.64172406,117000.0,116990.0,0.00349]
[1755888655697,1.64170406,117000.0,116990.0,0.00349]
[1755888656201,1.86426406,117000.0,116990.0,0.00349]
[1755888656343,1.85088117,117000.0,116990.0,0.00349]
[1755888656754,1.69554117,117000.0,116990.0,0.00572]
[1755888656964,1.84750117,117000.0,116990.0,0.00572]
[1755888657250,1.68956143,117000.0,116990.0,0.00572]
[1755888657465,1.84148085,117000.0,116990.0,0.00349]
[1755888657671,1.84660085,117000.0,116990.0,0.00349]
[1755888658140,1.81756543,117000.0,116990.0,0.00349]
[1755888658305,1.8414464,117000.0,116990.0,0.00349]
[1755888658717,1.84144742,117000.0,116990.0,0.00349]
[1755888659815,1.85482951,117000.0,116990.0,0.00349]
[1755888661094,1.85483343,117000.0,116990.0,0.00349]
[1755888662392,1.85483343,117000.0,116990.0,0.0014]
[1755888662393,1.86604668,117000.0,116990.0,0.0014]
[1755888663248,0.97446704,117000.0,116990.0,0.0014]
[1755888663468,1.86604668,117000.0,116990.0,0.0014]
[1755888663925,1.86604668,117000.0,116990.0,0.00346]
[1755888664140,1.86080668,117000.0,116990.0,0.00346]
[1755888664831,1.23963459,117000.0,116990.0,0.00346]
[1755888665053,1.39251459,117000.0,116990.0,0.00346]
[1755888666163,1.83830441,117000.0,116990.0,0.00346]
[1755888666390,1.8196585,117000.0,116990.0,0.0014]
[1755888666610,1.84355436,117000.0,116990.0,0.00346]
[1755888666827,0.95197472,117000.0,116990.0,0.00346]
[1755888667044,1.84355453,117000.0,116990.0,0.00346]
[1755888667258,1.83831453,117000.0,116990.0,0.00346]
[1755888667472,1.84741893,117000.0,116990.0,0.00346]
[1755888667689,1.84355453,117000.0,116990.0,0.00346]
[1755888668359,0.95197489,117000.0,116990.0,0.0014]
[1755888668648,1.84355453,117000.0,116990.0,0.0014]
[1755888668854,1.84953034,117000.0,116990.0,0.0014]
[1755888669239,0.9579507,117000.0,116990.0,0.0014]
[1755888669454,1.84953034,117000.0,116990.0,0.0014]
[1755888669892,1.86697936,117000.0,116990.0,0.0014]
[1755888671158,1.42118954,117000.0,116990.0,0.0014]
[1755888673330,1.44411589,117000.0,116990.0,0.0014]
[1755888673533,1.88990571,117000.0,116990.0,0.0014]
[1755888673734,1.44411589,117000.0,116990.0,0.0014]
[1755888674687,0.99832607,117000.0,116990.0,0.0014]
[1755888674997,1.44411589,117000.0,116990.0,0.0014]
[1755888675435,1.42220926,117000.0,116990.0,0.0014]
[1755888675675,1.44414551,117000.0,116990.0,0.0014]
[1755888676138,1.44414533,117000.0,116990.0,0.0014]
[1755888677239,0.99835551,117000.0,116990.0,0.0014]
[1755888677453,1.44414533,117000.0,116990.0,0.0014]
[1755888678138,1.88993515,117000.0,116990.0,0.0014]
[1755888678351,0.97419362,116990.0,116980.0,0.0004]
[1755888678559,1.33367766,116990.0,116980.0,0.0004]
[1755888678774,0.80323884,116980.0,116970.0,0.00384593]
[1755888679024,1.11701533,116980.0,116970.0,0.00384593]
[1755888679236,1.1676589,116980.0,116970.0,0.00384593]
[1755888679458,0.78578982,116950.0,116940.0,0.00263]
[1755888679680,1.09743457,116950.0,116940.0,0.00469]
[1755888680121,0.65164475,116950.0,116940.0,0.00469]
[1755888680372,0.67734975,116950.0,116940.0,0.00469]
[1755888680894,0.67739765,116950.0,116940.0,0.00469]
[1755888681107,0.67839765,116950.0,116940.0,0.00469]
[1755888682200,0.67939765,116950.0,116940.0,0.00469]
[1755888682423,0.67939765,116950.0,116940.0,0.00246]
[1755888683361,0.71757126,116950.0,116940.0,0.00246]
[1755888684036,1.16336108,116950.0,116940.0,0.00246]
[1755888684457,0.71757126,116950.0,116940.0,0.00246]
[1755888688006,0.71757126,116950.0,116940.0,0.00469]
[1755888688458,0.71725126,116950.0,116940.0,0.00469]
[1755888689785,0.71725126,116950.0,116940.0,0.00682784]
[1755888690007,0.56401126,116950.0,116940.0,0.45261766]
[1755888690247,0.26454151,116950.0,116940.0,0.45047982]
[1755888690487,0.60454151,116950.0,116940.0,0.45198643]
[1755888690729,0.26454151,116950.0,116940.0,0.45198643]
[1755888691192,0.2263679,116950.0,116940.0,0.45198643]
[1755888693461,0.0732479,116950.0,116940.0,0.45198643]
[1755888693650,0.2262479,116950.0,116940.0,0.45198643]
[1755888694084,0.0732479,116950.0,116940.0,0.45198643]
[1755888694332,0.2260879,116950.0,116940.0,0.00469]
[1755888694555,0.2260879,116950.0,116940.0,0.00246]
[1755888694995,0.23055491,116950.0,116940.0,0.00246]
[1755888695416,0.25625491,116950.0,116940.0,0.00246]
[1755888695622,0.25925491,116950.0,116940.0,0.00246]
[1755888695905,0.26138491,116950.0,116940.0,0.00246]
[1755888696112,0.26138491,116950.0,116940.0,0.0004]
[1755888696113,0.34826966,116950.0,116940.0,0.0004]
[1755888697597,0.38712123,116950.0,116940.0,0.0004]
[1755888700253,0.38199123,116950.0,116940.0,0.00255]
[1755888700673,0.72191123,116950.0,116940.0,0.00468784]
[1755888701312,0.72191123,116950.0,116940.0,0.00255]
[1755888701755,0.72191123,116950.0,116940.0,0.00468784]
[1755888703778,0.72191123,116950.0,116940.0,0.00255]
[1755888703993,0.72191123,116950.0,116940.0,0.00468784]
[1755888704209,0.72191123,116950.0,116940.0,0.00255]
[1755888704210,0.63502648,116950.0,116940.0,0.00255]
[1755888704425,0.63502648,116950.0,116940.0,0.00691784]
[1755888705524,0.63502648,116950.0,116940.0,0.00468784]
[1755888705750,0.63502648,116950.0,116940.0,0.00255]
[1755888706880,0.63502648,116950.0,116940.0,0.00468784]
[1755888707160,0.63502648,116950.0,116940.0,0.00255]
[1755888707405,0.63502648,116950.0,116940.0,0.00468784]
[1755888707651,0.63502648,116950.0,116940.0,0.45421427]
[1755888707652,0.48226648,116950.0,116940.0,0.45421427]
[1755888707880,0.60936648,116950.0,116940.0,0.49750486]
[1755888709051,0.60956648,116950.0,116940.0,0.05020843]
[1755888709266,0.60956648,116950.0,116940.0,0.45207643]
[1755888710596,0.00651491,116950.0,116940.0,0.45207643]
[1755888710821,0.0020479,116950.0,116940.0,0.5564102]
[1755888711107,0.0020479,116950.0,116940.0,0.70534178]
[1755888711327,0.0020479,116950.0,116940.0,0.87636178]
[1755888711994,0.0010479,116950.0,116940.0,0.87636178]
[1755888712214,0.0030479,116950.0,116940.0,0.87836178]
[1755888712666,0.0020479,116950.0,116940.0,0.87836178]
[1755888712894,0.0030479,116950.0,116940.0,0.87936178]
[1755888713127,0.0030479,116950.0,116940.0,0.43206535]
[1755888713357,0.0030479,116950.0,116940.0,0.87936178]
[1755888713619,0.0030479,116950.0,116940.0,0.81791673]
[1755888718201,0.0030479,116950.0,116940.0,0.97967744]
[1755888718430,0.0030479,116950.0,116940.0,1.04112249]
[1755888720681,0.0030479,116950.0,116940.0,0.88832249]
[1755888720898,0.0030479,116950.0,116940.0,0.42983535]
[1755888721329,0.0030479,116950.0,116940.0,0.87936178]
[1755888721560,0.0030479,116950.0,116940.0,0.81568673]
[1755888721775,0.0030479,116950.0,116940.0,1.13022951]
[1755888722000,0.0030479,116950.0,116940.0,1.13245951]
[1755888722237,0.0030479,116950.0,116940.0,1.08641673]
[1755888722513,0.0030479,116950.0,116940.0,1.1413419]
[1755888726665,0.0030479,116950.0,116940.0,1.13022426]
[1755888726666,0.07369743,116950.0,116940.0,1.13022426]
[1755888726883,0.07369743,116950.0,116940.0,1.11277524]
[1755888727517,0.07573743,116950.0,116940.0,1.11277524]
[1755888727734,0.07896743,116950.0,116940.0,1.11277524]
[1755888727953,0.07896743,116950.0,116940.0,0.57644406]
[1755888728172,0.07896743,116950.0,116940.0,0.22045753]
[1755888728404,0.07896743,116950.0,116940.0,0.17442]
[1755888728843,0.07796743,116950.0,116940.0,0.17342]
[1755888729291,0.07896743,116950.0,116940.0,0.62385427]
[1755888729495,0.1588379,116950.0,116940.0,0.62187643]
[1755888729705,0.1578379,116950.0,116940.0,0.68853633]
[1755888729914,0.0083179,116950.0,116940.0,0.69053633]
[1755888730169,0.1556079,116950.0,116940.0,0.68953633]
[1755888730384,0.1565679,116950.0,116940.0,0.69053633]
[1755888731002,0.1535679,116950.0,116940.0,0.68953633]
[1755888731209,0.1545679,116950.0,116940.0,0.69053633]
[1755888731418,0.1545679,116950.0,116940.0,0.73557386]
[1755888731622,0.1535679,116950.0,116940.0,0.73557386]
[1755888731823,0.1545679,116950.0,116940.0,0.73657386]
[1755888732950,0.1543279,116950.0,116940.0,0.73657386]
[1755888733364,0.1595979,116950.0,116940.0,0.28711743]
[1755888733526,0.1595979,116950.0,116940.0,0.73441386]
[1755888738118,0.16841205,116950.0,116940.0,0.73441386]
[1755888739366,0.16841205,116950.0,116940.0,0.28711743]
[1755888739835,0.16841205,116950.0,116940.0,0.21945753]
[1755888740195,0.16841205,116950.0,116940.0,0.66675396]
[1755888740431,0.16841205,116950.0,116940.0,0.21945753]
[1755888741108,0.16841205,116950.0,116940.0,0.17342]
[1755888744151,0.1595979,116950.0,116940.0,0.17342]
[1755888744572,0.16843018,116950.0,116940.0,0.17342]
[1755888746545,0.17289719,116950.0,116940.0,0.17342]
[1755888748240,0.17289719,116950.0,116940.0,0.62071643]
[1755888748459,0.17289719,116950.0,116940.0,0.17342]
[1755888749579,0.17289719,116950.0,116940.0,0.21945753]
[1755888751228,0.24409719,116950.0,116940.0,0.17342]
[1755888755409,0.24409719,116950.0,116940.0,0.21945753]
[1755888759548,0.24409719,116950.0,116940.0,0.25025196]
[1755888760620,0.09181719,116950.0,116940.0,0.21945753]
[1755888760861,0.24273719,116950.0,116940.0,0.21945753]
[1755888761700,0.23390491,116950.0,116940.0,0.21945753]
[1755888761916,0.23390491,116950.0,116940.0,0.66878396]
[1755888762151,0.08298491,116950.0,116940.0,0.66878396]
[1755888762359,0.23390491,116950.0,116940.0,0.22148753]
[1755888762571,0.07771491,116950.0,116940.0,0.66878396]
[1755888762781,0.22863491,116950.0,116940.0,0.74460686]
[1755888762991,0.22863491,116950.0,116940.0,0.29731043]
[1755888763201,0.22863491,116950.0,116940.0,0.66878396]
[1755888764563,0.23182491,116950.0,116940.0,0.22148753]
[1755888764726,0.23182491,116950.0,116940.0,0.66878396]
[1755888766640,0.23182491,116950.0,116940.0,0.22148753]
[1755888766866,0.23182491,116950.0,116940.0,0.66878396]
[1755888767088,0.23386491,116950.0,116940.0,0.21945753]
[1755888767304,0.23386491,116950.0,116940.0,0.66878396]
[1755888767522,0.23386491,116950.0,116940.0,0.22148753]
[1755888767737,0.23386491,116950.0,116940.0,0.66878396]
[1755888768598,0.23386491,116950.0,116940.0,0.69203775]
[1755888769039,0.22863491,116950.0,116940.0,0.24474132]
[1755888769244,0.22863491,116950.0,116940.0,0.69203775]
[1755888769484,0.23386491,116950.0,116940.0,0.24474132]
[1755888769721,0.23386491,116950.0,116940.0,0.24494858]
[1755888769969,0.23386491,116950.0,116940.0,0.24474132]
[1755888770188,0.23386491,116950.0,116940.0,0.69203775]
[1755888771586,0.23386491,116950.0,116940.0,0.24474132]
[1755888771816,0.23386491,116950.0,116940.0,0.69203775]
[1755888772278,0.23386491,116950.0,116940.0,0.24271132]
[1755888772487,0.23386491,116950.0,116940.0,0.69000775]
[1755888772679,0.08294491,116950.0,116940.0,0.69000775]
[1755888772916,0.23386491,116950.0,116940.0,0.69000775]
[1755888773324,0.23386491,116950.0,116940.0,0.24271132]
[1755888773777,0.23386491,116950.0,116940.0,0.69203775]
[1755888774022,0.23386491,116950.0,116940.0,0.24271132]
[1755888774229,0.23386491,116950.0,116940.0,0.69000775]
[1755888774444,0.23182491,116950.0,116940.0,0.69203775]
[1755888774694,0.23386491,116950.0,116940.0,0.69203775]
[1755888774905,0.23182491,116950.0,116940.0,0.69203775]
[1755888775334,0.23386491,116950.0,116940.0,0.66878396]
[1755888775973,0.23430491,116950.0,116940.0,0.66878396]
[1755888776182,0.23430491,116950.0,116940.0,0.21945753]
[1755888777271,0.23430491,116950.0,116940.0,0.22148753]
[1755888777485,0.23430491,116950.0,116940.0,0.66878396]
[1755888778262,0.23430491,116950.0,116940.0,0.74438386]
[1755888781248,0.23430491,116950.0,116940.0,0.74235386]
[1755888781895,0.23430491,116950.0,116940.0,0.21945753]
[1755888782523,0.08294491,116950.0,116940.0,0.21945753]
[1755888782736,0.23422491,116950.0,116940.0,0.21945753]
[1755888785185,0.32110966,116950.0,116940.0,0.21945753]
[1755888785631,0.32110966,116950.0,116940.0,0.17342]
[1755888794213,0.66110966,116950.0,116940.0,0.17342]
[1755888794611,0.68681266,116950.0,116940.0,0.17342]
[1755888795307,0.68581266,116950.0,116940.0,0.17242]
[1755888795731,0.68481266,116950.0,116940.0,0.17142]
[1755888797081,0.68581266,116950.0,116940.0,0.17242]
[1755888797731,0.68781266,116950.0,116940.0,0.17242]
[1755888807020,0.68781266,116950.0,116940.0,0.17195033]
[1755888812459,0.53653266,116950.0,116940.0,0.17407033]
[1755888812681,0.68222266,116950.0,116940.0,0.17620817]
[1755888813339,0.65651966,116950.0,116940.0,0.17620817]
[1755888814683,0.65971966,116950.0,116940.0,0.17620817]
[1755888815123,0.66170966,116950.0,116940.0,0.17620817]
[1755888815366,0.65971966,116950.0,116940.0,0.17620817]
[1755888817764,0.66170966,116950.0,116940.0,0.17620817]
[1755888818878,0.66170966,116950.0,116940.0,0.20698597]
[1755888819097,0.66170966,116950.0,116940.0,0.20484813]
[1755888819352,0.66170966,116950.0,116940.0,0.20272813]
[1755888819592,0.66170966,116950.0,116940.0,0.20484813]
[1755888819793,0.68741266,116950.0,116940.0,0.20484813]
[1755888824473,0.68741266,116950.0,116940.0,0.20272813]
[1755888825869,0.68741266,116950.0,116940.0,0.22584553]
[1755888826922,0.68741266,116950.0,116940.0,0.20272813]
[1755888827132,0.68741266,116950.0,116940.0,0.22584561]
[1755888828263,0.66170966,116950.0,116940.0,0.22584561]
[1755888829933,0.66170966,116950.0,116940.0,0.20272813]
[1755888831741,0.68741266,116950.0,116940.0,0.20272813]
[1755888834376,0.59525791,116950.0,116940.0,0.70834373]
[1755888834588,0.59525791,116950.0,116940.0,0.75661126]
[1755888834801,0.22955491,116950.0,116940.0,1.2899734]
[1755888835082,0.22955491,116950.0,116940.0,0.7864778]
[1755888835300,0.22955491,116950.0,116940.0,0.74044027]
[1755888835512,0.22955491,116950.0,116940.0,0.78664742]
[1755888836627,0.07871491,116950.0,116940.0,0.78664742]
[1755888836850,0.22955491,116950.0,116940.0,0.78664742]
[1755888837286,0.22955491,116950.0,116940.0,0.72600308]
[1755888842242,0.07871491,116950.0,116940.0,0.72600308]
[1755888842368,0.22947491,116950.0,116940.0,0.72600308]
[1755888842557,0.07871491,116950.0,116940.0,0.72600308]
[1755888842788,0.22947491,116950.0,116940.0,0.72600308]
[1755888843035,0.22947491,116950.0,116940.0,0.80732479]
[1755888845610,0.22947491,116950.0,116940.0,0.80509479]
[1755888847114,0.22947491,116950.0,116940.0,0.79903479]
[1755888847864,0.22947491,116950.0,116940.0,1.25632324]
[1755888848084,0.07871491,116950.0,116940.0,1.34569629]
[1755888848297,0.22943491,116950.0,116940.0,1.34569629]
[1755888848533,0.22943491,116950.0,116940.0,1.37113599]
[1755888848736,0.15823491,116950.0,116940.0,1.37113599]
[1755888848934,0.1537679,116950.0,116940.0,1.38858501]
[1755888849407,0.0030479,116950.0,116940.0,1.38858501]
[1755888849857,0.0030479,116950.0,116940.0,1.46468586]
[1755888850080,0.0010479,116950.0,116940.0,1.46468586]
[1755888850300,4.79e-05,116950.0,116940.0,1.46368586]
[1755888850529,0.0020479,116950.0,116940.0,1.46468586]
[1755888850758,0.0030479,116950.0,116940.0,2.50918146]
[1755888851025,6.748e-05,116950.0,116940.0,2.50432061]
[1755888851254,1.55e-06,116950.0,116940.0,2.7012565]
[1755888851477,1.55e-06,116950.0,116940.0,2.59444061]
[1755888851695,1.55e-06,116950.0,116940.0,2.70187883]
[1755888851925,1.55e-06,116950.0,116940.0,2.85255883]
[1755888852149,1.55e-06,116950.0,116940.0,2.74512061]
[1755888852404,1.55e-06,116950.0,116940.0,2.2358994]
[1755888853299,1.55e-06,116950.0,116940.0,2.12854063]
[1755888853519,1.55e-06,116950.0,116940.0,2.23583558]
[1755888855033,1.55e-06,116950.0,116940.0,2.27457491]